bitfinex-derivatives/quotes_BTCF0:USTF0_20210111
["timestamp","ask_amount","ask_price","bid_price","bid_amount"]
[1610345759845,0.0881,34112.0,34106.0,0.13632608]
[1610345760046,0.089,34163.0,34086.0,0.0879]
[1610345760249,0.089,34163.0,34077.0,0.0885]
[1610345760445,0.15919,34163.0,34077.0,0.0885]
[1610345760950,0.07019,34163.0,34077.0,0.0885]
[1610345761947,0.07019,34163.0,34143.0,0.13632608]
[1610345762147,0.07019,34163.0,34078.0,0.2825]
[1610345763149,0.07019,34163.0,34078.0,0.3708]
[1610345763348,0.07019,34163.0,34078.0,0.2825]
[1610345763551,0.07019,34163.0,34086.0,1.0]
[1610345763748,0.07019,34163.0,34087.0,0.0881]
[1610345763948,0.07019,34163.0,34086.0,1.0]
[1610345764150,0.07019,34163.0,34087.0,0.2931]
[1610345764348,0.07019,34163.0,34087.0,0.30576]
[1610345764547,0.07019,34163.0,34087.0,0.8581]
[1610345764748,0.07019,34163.0,34087.0,0.2814]
[1610345764948,0.07019,34163.0,34087.0,0.3703]
[1610345765348,0.0869,34187.0,34087.0,0.3703]
[1610345765548,0.0874,34192.0,34087.0,0.3703]
[1610345765748,0.03034965,40406.0,34087.0,0.3703]
[1610345765949,0.13632608,34151.0,34143.0,0.13632608]
[1610345766150,0.23125608,34151.0,34087.0,0.2814]
[1610345766348,0.07493,34151.0,34087.0,0.2814]
[1610345766749,0.07073,34151.0,34087.0,0.2814]
[1610345766949,0.0886,34266.0,34163.0,0.02]
[1610345767150,0.0886,34266.0,34100.0,0.0881]
[1610345767349,0.06888,34240.0,34096.0,0.0873]
[1610345767550,0.06888,34240.0,34106.0,1.0]
[1610345767951,0.13632608,34236.0,34106.0,1.0]
[1610345768349,0.13632608,34236.0,34107.0,0.3603]
[1610345768550,0.06080608,34240.0,34107.0,0.3603]
[1610345768851,6.08e-06,34240.0,34107.0,0.44888]
[1610345769452,6.08e-06,34240.0,34237.0,1.0]
[1610345769654,6.08e-06,34240.0,34220.0,3.36337]
[1610345769853,6.08e-06,34240.0,34220.0,2.86643]
[1610345770053,6.08e-06,34240.0,34170.0,1.0]
[1610345770252,6.08e-06,34240.0,34165.0,1.0]
[1610345771053,6.08e-06,34240.0,34166.0,0.275]
[1610345771955,6.08e-06,34240.0,34230.0,0.13632608]
[1610345772155,6.08e-06,34240.0,34166.0,0.275]
[1610345772356,1.0,34287.0,34166.0,0.275]
[1610345772556,1.0,34287.0,34166.0,0.35399]
[1610345773357,0.1283,34273.0,34166.0,0.35399]
[1610345773557,1.0,34287.0,34166.0,0.35399]
[1610345774358,1.0,34316.0,34179.0,1.0]
[1610345774558,1.0,34316.0,34179.0,1.07541]
[1610345774961,1.0,34316.0,34180.0,0.2897]
[1610345775461,1.0,34316.0,34180.0,0.3772]
[1610345775661,0.088,34299.0,34180.0,0.3772]
[1610345775861,0.088,34299.0,34180.0,0.2897]
[1610345776065,1.0,34316.0,34247.0,0.13632608]
[1610345776262,3.17146977,34400.0,34247.0,0.13632608]
[1610345776263,1.0,34348.0,34247.0,0.13632608]
[1610345777963,0.13632608,34298.0,34289.0,0.13632608]
[1610345778163,1.0,34348.0,34289.0,0.13632608]
[1610345778362,0.2679,34290.0,34289.0,0.13632608]
[1610345778562,0.2312,34290.0,34289.0,0.13632608]
[1610345778764,0.2312,34290.0,34224.0,1.0]
[1610345778966,0.31351,34290.0,34275.0,3.4794]
[1610345779363,0.03221,34290.0,34275.0,3.4794]
[1610345779763,1e-05,34290.0,34275.0,3.4794]
[1610345779963,1e-05,34290.0,34289.0,0.13632608]
[1610345780164,1e-05,34290.0,34275.0,3.4794]
[1610345780364,1.0,34325.0,34289.0,6.0]
[1610345780764,0.3922,34325.0,34289.0,6.0]
[1610345781166,1.0,34327.0,34310.0,1.0]
[1610345781364,1.0,34327.0,34310.0,0.48943]
[1610345781564,1.0,34327.0,34310.0,0.13985]
[1610345781766,1.0,34328.0,34311.0,1.0]
[1610345781965,4.8912,34382.0,34326.0,0.13632608]
[1610345782166,0.0863,34381.0,34326.0,0.13632608]
[1610345782366,0.19227,34381.0,34326.0,0.13632608]
[1610345782965,0.10597,34381.0,34326.0,0.13632608]
[1610345783765,0.10597,34381.0,34276.0,0.2875]
[1610345783965,0.13632608,34344.0,34341.0,0.13632608]
[1610345784165,0.09313,34344.0,34341.0,0.13632608]
[1610345785368,3e-05,34344.0,34341.0,0.13632608]
[1610345788473,0.09367,34381.0,34341.0,0.13632608]
[1610345788674,0.03774,34344.0,34341.0,0.13632608]
[1610345789674,0.07048,34344.0,34341.0,0.13632608]
[1610345790273,0.07048,34344.0,34318.0,1.0]
[1610345790473,0.10215,34358.0,34318.0,1.0]
[1610345791872,0.10215,34358.0,34315.0,0.2771]
[1610345792073,0.13632608,34321.0,34315.0,0.2771]
[1610345792274,0.24181608,34321.0,34315.0,0.2771]
[1610345792473,0.10549,34321.0,34315.0,0.2771]
[1610345793873,6.0,34316.0,34264.0,1.0]
[1610345794074,0.13632608,34287.0,34281.0,0.13632608]
[1610345794274,0.23474608,34287.0,34281.0,0.13632608]
[1610345794473,0.23474608,34287.0,34207.0,1.0]
[1610345796174,0.09842,34287.0,34202.0,0.2814]
[1610345798078,0.09842,34287.0,34249.0,0.13632608]
[1610345799381,1.0,34311.0,34249.0,0.13632608]
[1610345800183,1.0,34311.0,34228.0,3.6649]
[1610345800184,1.0,34316.0,34257.0,0.13632608]
[1610345800383,1.0,34316.0,34228.0,3.6649]
[1610345802087,1.0,34316.0,34258.0,0.13632608]
[1610345802288,4.68399,34321.0,34228.0,3.6649]
[1610345804293,4.68399,34321.0,34320.0,1.13632608]
[1610345804695,0.10549,34321.0,34320.0,1.13632608]
[1610345804892,1.0,34348.0,34320.0,1.13632608]
[1610345806193,1.0,34342.0,34325.0,1.0]
[1610345806393,1.11002,34342.0,34325.0,1.0]
[1610345806794,1.11002,34342.0,34325.0,0.3855]
[1610345806994,0.11002,34342.0,34299.0,0.2757]
[1610345808295,0.13632608,34300.0,34299.0,0.2757]
[1610345808495,0.22121608,34300.0,34299.0,0.2757]
[1610345808695,0.22121608,34300.0,34283.0,0.13632608]
[1610345809095,1.0,34291.0,34283.0,0.13632608]
[1610345810299,1.0,34291.0,34290.0,0.13632608]
[1610345811096,0.08106,34308.0,34290.0,0.13632608]
[1610345812199,0.13632608,34328.0,34307.0,0.13632608]
[1610345813304,0.11002,34342.0,34307.0,0.13632608]
[1610345813503,1.0,34390.0,34307.0,0.13632608]
[1610345814305,1.0,34390.0,34358.0,0.13632608]
[1610345814706,1.0,34390.0,34305.0,0.11362]
[1610345814906,3.57451,34371.0,34305.0,0.11362]
[1610345816006,3.57451,34371.0,34299.0,0.2964]
[1610345816207,0.13632608,34344.0,34342.0,0.13632608]
[1610345816408,0.23199608,34344.0,34342.0,0.13632608]
[1610345816809,0.23199608,34344.0,34299.0,0.2964]
[1610345817610,0.09567,34344.0,34299.0,0.2964]
[1610345818211,0.09541,34371.0,34343.0,0.13632608]
[1610345819613,4.3631,34389.0,34343.0,0.13632608]
[1610345819817,1.0,34426.0,34347.0,4.6997]
[1610345819818,0.805,34426.0,34347.0,4.6997]
[1610345820024,0.805,34426.0,34348.0,0.0873]
[1610345820218,0.0883,34430.0,34349.0,1.0]
[1610345820417,0.0861,34444.0,34402.0,0.13632608]
[1610345820615,0.0861,34444.0,34359.0,0.0873]
[1610345820815,0.17629,34444.0,34359.0,0.0873]
[1610345821016,0.09019,34444.0,34359.0,0.0873]
[1610345822019,0.09019,34444.0,34349.0,1.0]
[1610345822234,0.09019,34444.0,34348.0,0.0873]
[1610345822414,0.13632608,34390.0,34347.0,4.6997]
[1610345822614,0.24716608,34390.0,34347.0,4.6997]
[1610345823015,0.07346608,34390.0,34347.0,4.6997]
[1610345823214,0.09019,34444.0,34347.0,4.6997]
[1610345824015,0.09019,34444.0,34348.0,0.0862]
[1610345824217,1.0,34424.0,34407.0,1.0]
[1610345824417,1.09587,34424.0,34416.0,0.13632608]
[1610345824618,1.09587,34424.0,34407.0,0.01099608]
[1610345824819,0.09587,34424.0,34365.0,1.0]
[1610345825933,7e-05,34424.0,34365.0,1.0]
[1610345826122,0.08135,34424.0,34365.0,1.0]
[1610345826520,0.08135,34424.0,34423.0,0.13632608]
[1610345826722,0.08135,34424.0,34388.0,0.0866]
[1610345826921,0.04345,34424.0,34415.0,1.0]
[1610345827121,0.85375,34433.0,34415.0,1.0]
[1610345827321,1.0,34427.0,34410.0,1.0]
[1610345827522,0.13632608,34435.0,34381.0,0.08619]
[1610345828523,0.0876,34476.0,34381.0,0.08619]
[1610345828721,0.0876,34476.0,34382.0,0.0884]
[1610345828922,0.0876,34476.0,34381.0,0.08619]
[1610345829125,0.15955,34476.0,34381.0,0.08619]
[1610345829724,0.07195,34476.0,34381.0,0.08619]
[1610345829925,0.07195,34476.0,34382.0,0.2796]
[1610345830124,0.07195,34476.0,34382.0,0.3675]
[1610345830525,0.13632608,34441.0,34429.0,0.13632608]
[1610345830727,0.20990608,34441.0,34429.0,0.13632608]
[1610345830926,0.13070608,34441.0,34429.0,0.13632608]
[1610345831127,0.11228,34441.0,34429.0,0.13632608]
[1610345831726,0.11228,34441.0,34430.0,0.0883]
[1610345831927,0.11228,34441.0,34429.0,0.13632608]
[1610345832526,0.11228,34441.0,34440.0,0.13632608]
[1610345833527,0.11228,34441.0,34440.0,1.13632608]
[1610345834328,0.11228,34441.0,34440.0,1.0]
[1610345834528,0.11228,34441.0,34440.0,1.13632608]
[1610345835528,0.11228,34441.0,34440.0,0.13632608]
[1610345836128,0.13632608,34461.0,34440.0,0.13632608]
[1610345836529,0.13632608,34461.0,34460.0,0.13632608]
[1610345836729,0.13632608,34461.0,34441.0,0.0882]
[1610345837128,0.13632608,34461.0,34432.0,0.0873]
[1610345837530,0.13632608,34461.0,34445.0,1.0]
[1610345837728,0.13632608,34461.0,34446.0,0.0871]
[1610345837928,0.13632608,34461.0,34445.0,1.0]
[1610345838129,0.22522608,34461.0,34445.0,1.0]
[1610345838631,0.13632608,34446.0,34445.0,1.0]
[1610345838833,0.23481608,34446.0,34445.0,1.0]
[1610345839633,0.23481608,34446.0,34378.0,0.0868]
[1610345839832,0.23481608,34446.0,34388.0,0.0879]
[1610345840034,0.23481608,34446.0,34403.0,0.088]
[1610345840232,0.23481608,34446.0,34388.0,0.0879]
[1610345840633,0.13632608,34410.0,34397.0,0.0874]
[1610345840833,0.23737608,34410.0,34389.0,0.13632608]
[1610345841535,0.23737608,34410.0,34409.0,0.38]
[1610345841736,0.23737608,34410.0,34409.0,0.2933]
[1610345842338,0.10105,34410.0,34409.0,0.2933]
[1610345842938,0.23737608,34410.0,34409.0,0.2933]
[1610345844639,0.23737608,34410.0,34336.0,0.0868]
[1610345844839,0.13632608,34370.0,34364.0,0.13632608]
[1610345845239,0.13632608,34370.0,34347.0,0.0875]
[1610345845441,0.13632608,34370.0,34313.0,1.0]
[1610345845640,6.0,34365.0,34327.0,1.0]
[1610345845841,6.06963,34365.0,34330.0,0.0878]
[1610345846040,6.06963,34365.0,34327.0,1.0]
[1610345846844,0.13632608,34333.0,34327.0,1.0]
[1610345847042,0.22151608,34333.0,34327.0,1.0]
[1610345847641,0.22151608,34333.0,34310.0,5.0]
[1610345847642,0.22151608,34333.0,34297.0,0.0885]
[1610345848945,0.22151608,34333.0,34242.0,1.0]
[1610345849343,0.22151608,34333.0,34309.0,0.0886]
[1610345849547,0.22151608,34333.0,34256.0,1.0]
[1610345849745,0.13071608,34333.0,34314.0,0.087]
[1610345849944,0.13071608,34333.0,34302.0,0.0861]
[1610345850144,0.09551608,34333.0,34302.0,0.0861]
[1610345850646,0.05631608,34333.0,34302.0,0.0861]
[1610345850846,0.05631608,34333.0,34320.0,0.13632608]
[1610345850847,0.19264216,34333.0,34320.0,0.13632608]
[1610345851246,0.19264216,34333.0,34256.0,1.0]
[1610345851446,0.19264216,34333.0,34262.0,0.0885]
[1610345852047,0.81714216,34333.0,34332.0,0.09146]
[1610345852847,0.81714216,34333.0,34279.0,4.4615]
[1610345854849,0.13632608,34280.0,34279.0,4.2655]
[1610345855049,0.23360608,34280.0,34279.0,4.2655]
[1610345856250,0.09728,34280.0,34279.0,4.2655]
[1610345856850,0.23360608,34280.0,34279.0,4.2655]
[1610345857452,0.23360608,34280.0,34279.0,3.8744]
[1610345857650,0.09728,34280.0,34279.0,3.8744]
[1610345857850,1.0,34326.0,34279.0,3.8744]
[1610345859051,1.0883,34383.0,34311.0,0.13632608]
[1610345859454,1.0,34383.0,34311.0,0.13632608]
[1610345860054,1.0,34383.0,34279.0,3.8744]
[1610345860454,0.0875,34367.0,34279.0,3.8744]
[1610345860654,0.0882,34356.0,34279.0,3.8744]
[1610345860853,0.0875,34367.0,34279.0,3.8744]
[1610345861054,0.13632608,34285.0,34279.0,3.8744]
[1610345861253,0.21085608,34285.0,34279.0,3.8744]
[1610345862253,0.07453,34285.0,34279.0,3.8744]
[1610345862856,0.6926,34284.0,34262.0,0.2876]
[1610345863056,0.13632608,34280.0,34262.0,0.2876]
[1610345864861,0.13632608,34280.0,34252.0,0.02228]
[1610345865061,0.13632608,34253.0,34252.0,0.02228]
[1610345865261,0.13632608,34253.0,34252.0,8e-05]
[1610345865461,0.13632608,34253.0,34230.0,3.82018]
[1610345865663,0.13632608,34253.0,34230.0,3.31098]
[1610345865863,1.0,34263.0,34230.0,3.31098]
[1610345866062,1.0,34263.0,34230.0,2.31098]
[1610345866462,1.0,34258.0,34230.0,2.31098]
[1610345867064,0.13632608,34238.0,34230.0,2.00592]
[1610345867262,0.22764608,34238.0,34230.0,1.41756]
[1610345867661,0.22764608,34238.0,34230.0,0.17112]
[1610345869062,0.13632608,34231.0,34230.0,0.17112]
[1610345871068,0.24832608,34231.0,34230.0,0.17112]
[1610345872671,0.24832608,34231.0,34176.0,0.10707]
[1610345873071,0.13632608,34202.0,34176.0,0.10707]
[1610345875576,0.13632608,34202.0,34176.0,0.19427]
[1610345875776,0.09913,34217.0,34183.0,0.0875]
[1610345875977,0.09913,34217.0,34193.0,0.0889]
[1610345876376,0.09913,34217.0,34197.0,0.0887]
[1610345876778,4.72703,34224.0,34201.0,0.10088]
[1610345877178,4.62173,34224.0,34223.0,0.13632608]
[1610345877378,3.36059264,34299.0,34223.0,0.13632608]
[1610345877379,4.8696,34252.0,34223.0,0.07904]
[1610345877978,4.5232,34267.0,34223.0,0.07904]
[1610345878380,4.3645,34283.0,34223.0,0.07904]
[1610345879180,4.3605,34283.0,34252.0,0.13632608]
[1610345879382,1.0,34318.0,34252.0,0.20503608]
[1610345879980,1.0,34293.0,34275.0,1.0]
[1610345880984,0.5721,34293.0,34275.0,1.0]
[1610345881185,0.13632608,34292.0,34288.0,0.13632608]
[1610345881385,0.13632608,34292.0,34258.0,0.0884]
[1610345881580,0.03342608,34292.0,34258.0,0.0884]
[1610345881782,0.10284,34324.0,34258.0,0.0884]
[1610345882283,4.9103,34306.0,34252.0,0.15511]
[1610345882990,4.9103,34306.0,34252.0,0.06871]
[1610345883393,5.00857,34306.0,34252.0,0.06871]
[1610345883591,5.00857,34306.0,34226.0,3.5579]
[1610345883790,3.3689,34278.0,34203.0,4.1668]
[1610345883991,3.44624,34278.0,34203.0,4.1668]
[1610345884686,4.2667,34258.0,34195.0,0.0879]
[1610345885085,0.13632608,34213.0,34207.0,0.13632608]
[1610345885288,4.2667,34258.0,34181.0,4.4555]
[1610345887088,0.13632608,34202.0,34181.0,4.4555]
[1610345887488,0.13632608,34202.0,34168.0,0.13632608]
[1610345889288,0.13632608,34188.0,34185.0,0.13632608]
[1610345889490,3.8393,34210.0,34185.0,0.13632608]
[1610345889691,3.8393,34210.0,34185.0,0.24371608]
[1610345889891,3.8374,34210.0,34186.0,0.0884]
[1610345890092,0.10592,34244.0,34185.0,0.24371608]
[1610345890891,0.02,34258.0,34185.0,0.24371608]
[1610345891092,0.02,34258.0,34185.0,0.33071608]
[1610345891291,0.02,34258.0,34226.0,0.13632608]
[1610345891891,0.02,34258.0,34225.0,0.09891]
[1610345893192,0.13632608,34226.0,34225.0,0.09891]
[1610345894596,0.02,34258.0,34225.0,0.09891]
[1610345895195,0.02,34258.0,34249.0,0.13632608]
[1610345896097,1.0,34275.0,34249.0,0.13632608]
[1610345896297,0.9215,34275.0,34249.0,0.13632608]
[1610345896497,0.6155,34275.0,34249.0,0.13632608]
[1610345896698,3.46277355,34325.0,34249.0,0.13632608]
[1610345897298,3.48079114,34332.0,34293.0,0.13632608]
[1610345897698,3.48079114,34332.0,34258.0,0.08904]
[1610345897899,3.55538114,34332.0,34258.0,0.08904]
[1610345898400,0.07459,34332.0,34259.0,0.0879]
[1610345898601,0.07459,34332.0,34258.0,0.08904]
[1610345899201,0.13632608,34277.0,34258.0,0.08904]
[1610345900203,1.82754,34239.0,34225.0,0.39531]
[1610345900606,0.13632608,34277.0,34233.0,0.0877]
[1610345900806,0.10299,34287.0,34233.0,0.17853]
[1610345901003,0.2905,34328.0,34234.0,1.0]
[1610345901205,0.13632608,34305.0,34298.0,0.13632608]
[1610345901604,0.10859,34309.0,34298.0,0.13632608]
[1610345901804,0.07929,34309.0,34298.0,0.13632608]
[1610345902005,0.07929,34309.0,34279.0,0.08077]
[1610345902606,0.08847,34325.0,34279.0,0.08077]
[1610345903306,0.08847,34325.0,34307.0,0.13632608]
[1610345904508,3.5707191,34346.0,34307.0,0.13632608]
[1610345904908,1.0,34324.0,34307.0,1.0]
[1610345905308,0.13632608,34308.0,34307.0,1.0]
[1610345905508,0.21544608,34308.0,34307.0,1.0]
[1610345905711,0.21544608,34308.0,34307.0,0.0425]
[1610345905911,0.07912,34308.0,34290.0,5.0]
[1610345906109,0.07912,34308.0,34281.0,3.4057]
[1610345906110,1.07912,34308.0,34281.0,3.4057]
[1610345906309,1.07912,34308.0,34156.0,1.0]
[1610345906310,5.80742,34308.0,34236.0,0.2721]
[1610345906511,1.07912,34308.0,34236.0,0.2721]
[1610345906711,1.07912,34308.0,34156.0,1.0]
[1610345907111,0.0867,34307.0,34157.0,0.2833]
[1610345907312,0.13632608,34188.0,34185.0,0.13632608]
[1610345907511,0.0852,34261.0,34185.0,0.13632608]
[1610345907712,3.37707984,34248.0,34185.0,0.09931]
[1610345908111,1.0,34241.0,34185.0,0.09931]
[1610345908512,1.07352,34241.0,34185.0,0.09931]
[1610345909313,0.13632608,34186.0,34185.0,0.09931]
[1610345910315,0.13632608,34186.0,34157.0,0.2831]
[1610345910515,0.13632608,34186.0,34174.0,7.8896]
[1610345910715,0.13632608,34186.0,34174.0,7.9615]
[1610345911315,0.13632608,34175.0,34174.0,7.9615]
[1610345911517,3.46502608,34175.0,34174.0,0.0719]
[1610345911719,3.46502608,34175.0,34157.0,0.2831]
[1610345913122,3.3287,34175.0,34157.0,0.2831]
[1610345913724,0.13632608,34158.0,34157.0,0.2831]
[1610345914723,0.13632608,34158.0,34112.0,3.5081]
[1610345915726,0.13632608,34113.0,34112.0,3.5081]
[1610345915925,0.13632608,34113.0,34039.0,1.0]
[1610345916127,0.20983608,34113.0,34039.0,1.0]
[1610345916325,1.20983608,34113.0,34040.0,0.0002]
[1610345916524,1.20983608,34113.0,34040.0,0.11327]
[1610345916727,1.20983608,34113.0,34040.0,0.11307]
[1610345917726,1.07351,34113.0,34040.0,0.11307]
[1610345918126,0.07351,34113.0,34040.0,0.11307]
[1610345919730,0.13632608,34086.0,34075.0,0.13632608]
[1610345919930,0.13632608,34086.0,34040.0,0.11307]
[1610345920131,0.13632608,34086.0,34082.0,1.0]
[1610345920531,0.13632608,34086.0,34082.0,1.06904]
[1610345920930,0.7049,34085.0,34082.0,1.06904]
[1610345921432,0.7049,34085.0,34082.0,1.0]
[1610345921631,0.7049,34085.0,34082.0,0.7731]
[1610345921931,6.0,34083.0,34064.0,0.10466]
[1610345922133,6.0,34083.0,34040.0,0.11307]
[1610345922332,6.0,34083.0,34036.0,4.2241]
[1610345922532,6.06937,34083.0,34036.0,4.2241]
[1610345923732,0.13632608,34037.0,34034.0,1.0]
[1610345923934,0.13632608,34037.0,33915.0,1.0]
[1610345924331,0.13632608,34037.0,33916.0,0.1556]
[1610345924733,0.13632608,34037.0,33922.0,6.8077]
[1610345925636,0.13632608,33983.0,33968.0,0.13632608]
[1610345925835,0.10436,34021.0,33968.0,0.13632608]
[1610345926036,1.0,34002.0,33985.0,1.0]
[1610345927236,5.0,34019.0,33985.0,1.0]
[1610345927436,0.09054,34041.0,33982.0,0.13557]
[1610345927636,0.13632608,34036.0,34023.0,0.13632608]
[1610345928337,0.13632608,34036.0,33982.0,0.13557]
[1610345928736,4.3397,34012.0,33982.0,0.13557]
[1610345929437,1.0,34002.0,33985.0,1.0]
[1610345929639,0.13632608,33986.0,33985.0,1.0]
[1610345930739,1.0,34002.0,33985.0,1.0]
[1610345931442,4.3397,34012.0,33982.0,0.13557]
[1610345931640,0.13632608,33983.0,33982.0,0.13557]
[1610345932639,0.6413,34001.0,33982.0,0.13557]
[1610345933841,0.13632608,33990.0,33982.0,0.13557]
[1610345934044,0.6413,34001.0,33982.0,0.13557]
[1610345935041,2.86585443,34072.0,33982.0,0.13557]
[1610345935542,2.86883539,34088.0,34009.0,1.0]
[1610345935741,2.86883539,34088.0,34009.0,1.08299]
[1610345935943,2.87133975,34096.0,34065.0,0.13632608]
[1610345936142,2.87133975,34096.0,34065.0,0.08021]
[1610345936545,0.0875,34114.0,34065.0,0.08021]
[1610345936546,2.87754075,34110.0,34065.0,0.08021]
[1610345937545,2.85505082,34118.0,34065.0,0.08021]
[1610345937943,0.13632608,34066.0,34065.0,0.08021]
[1610345938146,0.13632608,34066.0,34020.0,0.13632608]
[1610345938345,0.13632608,34066.0,34009.0,0.08299]
[1610345938547,0.13632608,34066.0,34012.0,0.636]
[1610345939947,0.13632608,34046.0,34033.0,0.13632608]
[1610345940547,0.13632608,34046.0,34012.0,0.636]
[1610345941952,0.07223,34049.0,34012.0,0.636]
[1610345942554,0.13632608,34013.0,34012.0,0.636]
[1610345942753,0.13632608,34013.0,33876.0,0.0891]
[1610345942955,0.13632608,34013.0,33982.0,0.0298]
[1610345943557,1.0,33994.0,33982.0,0.0298]
[1610345943759,1.10401,33994.0,33982.0,0.0298]
[1610345944156,1.10401,33994.0,33862.0,0.1556]
[1610345944556,1.10401,33994.0,33871.0,0.13632608]
[1610345944755,4.3436,33983.0,33917.0,4.2569]
[1610345944955,4.4347,33983.0,33917.0,4.2569]
[1610345946557,0.13632608,33918.0,33917.0,4.2569]
[1610345947358,0.07322,33964.0,33917.0,4.2569]
[1610345947559,0.07322,33964.0,33917.0,4.35341]
[1610345947758,3.9166,33947.0,33917.0,0.09651]
[1610345948560,0.13632608,33918.0,33917.0,0.09651]
[1610345949160,0.13632608,33918.0,33876.0,0.2922]
[1610345949462,1.13632608,33918.0,33876.0,0.2922]
[1610345950559,0.13632608,33877.0,33876.0,0.2922]
[1610345951162,1.0,33918.0,33876.0,0.2922]
[1610345951560,0.11352,33931.0,33876.0,0.2922]
[1610345952559,0.13632608,33909.0,33876.0,0.2922]
[1610345953059,0.06052608,33909.0,33876.0,0.2922]
[1610345953867,0.11352,33931.0,33876.0,0.2922]
[1610345954666,3.9166,33947.0,33876.0,0.2922]
[1610345955662,3.9166,33947.0,33877.0,0.0879]
[1610345955861,3.9166,33947.0,33876.0,0.2922]
[1610345956667,0.13632608,33891.0,33887.0,0.13632608]
[1610345956861,0.07685,33936.0,33876.0,0.2922]
[1610345957266,4.1204,33933.0,33876.0,0.2922]
[1610345957461,1.0,33919.0,33902.0,1.0]
[1610345958262,1.0,33919.0,33902.0,0.7264]
[1610345958662,0.08824,33925.0,33876.0,0.2922]
[1610345958663,0.13632608,33903.0,33876.0,0.2922]
[1610345958864,0.22979608,33903.0,33876.0,0.2922]
[1610345960664,1.13632608,33877.0,33876.0,0.2922]
[1610345962167,1.0,33877.0,33876.0,0.2922]
[1610345962568,0.09347,33903.0,33876.0,6.42852608]
[1610345962767,1.0,33923.0,33876.0,6.52556608]
[1610345964671,0.13632608,33908.0,33876.0,0.38924]
[1610345965273,0.075,33939.0,33876.0,0.38924]
[1610345965872,2.71169463,33973.0,33876.0,0.38924]
[1610345966272,2.717912,33984.0,33876.0,0.38924]
[1610345966572,0.13632608,33933.0,33876.0,0.38924]
[1610345967272,3.4994,33935.0,33876.0,0.38924]
[1610345968575,3.4994,33935.0,33912.0,0.13632608]
[1610345968777,3.4994,33935.0,33912.0,0.087]
[1610345969976,3.4994,33935.0,33900.0,0.08326]
[1610345970179,3.58538,33935.0,33900.0,0.08326]
[1610345970681,0.13632608,33901.0,33900.0,0.08326]
[1610345970879,0.13632608,33901.0,33882.0,0.13632608]
[1610345972280,0.13632608,33901.0,33876.0,0.38924]
[1610345972683,0.13632608,33891.0,33884.0,0.13632608]
[1610345972880,0.11065,33909.0,33884.0,0.13632608]
[1610345973179,3.58538,33935.0,33884.0,0.1053]
[1610345973980,2.79280278,33933.0,33884.0,0.1053]
[1610345974181,2.79280278,33933.0,33876.0,0.2922]
[1610345974581,1.0,33904.0,33887.0,1.0]
[1610345974782,1.084,33904.0,33887.0,1.0]
[1610345975586,1.0,33904.0,33887.0,1.0]
[1610345976184,1.0,33904.0,33888.0,0.088]
[1610345976384,1.0,33904.0,33888.0,0.08222]
[1610345976585,0.13632608,33889.0,33888.0,0.08222]
[1610345977185,0.0888,33902.0,33888.0,0.08222]
[1610345977584,0.0888,33902.0,33878.0,0.07753]
[1610345978585,0.0888,33902.0,33880.0,0.13632608]
[1610345979185,0.0427,33902.0,33880.0,0.13632608]
[1610345979385,2.81040412,33918.0,33880.0,0.13632608]
[1610345979587,2.81040412,33918.0,33878.0,0.07753]
[1610345980188,3.5518,33919.0,33878.0,0.07753]
[1610345980790,0.13632608,33897.0,33892.0,0.13632608]
[1610345981092,3.5518,33919.0,33892.0,0.13632608]
[1610345981291,3.5518,33919.0,33892.0,0.07524]
[1610345982695,0.13632608,33895.0,33892.0,0.07524]
[1610345986496,1.0,33893.0,33878.0,0.07753]
[1610345986697,0.13632608,33879.0,33861.0,1.0]
[1610345987497,0.0887,33878.0,33861.0,1.0]
[1610345987697,0.0887,33878.0,33844.0,5.0]
[1610345988099,0.0887,33878.0,33701.0,0.9506]
[1610345988100,1.0,33867.0,33732.0,1.0]
[1610345988499,1.0,33867.0,33733.0,0.5212]
[1610345988698,1.0,33867.0,33733.0,0.24804]
[1610345988900,2.83474186,33863.0,33733.0,0.24804]
[1610345989098,2.91768186,33863.0,33734.0,0.0002]
[1610345989297,2.91768186,33863.0,33734.0,0.2753]
[1610345989700,2.91768186,33863.0,33735.0,0.0002]
[1610345990098,1.0,33800.0,33735.0,0.0002]
[1610345990300,1.0,33800.0,33733.0,0.09224]
[1610345990703,0.13632608,33734.0,33733.0,0.09224]
[1610345990902,2.77128705,33787.0,33733.0,0.09224]
[1610345991510,0.09168705,33800.0,33733.0,0.09224]
[1610345991709,4.563,33804.0,33747.0,1.0]
[1610345991901,4.563,33804.0,33747.0,1.09764]
[1610345992702,4.563,33804.0,33791.0,0.13632608]
[1610345992901,3.06306773,33846.0,33791.0,0.22547608]
[1610345993101,0.02,33844.0,33791.0,0.22547608]
[1610345993304,0.0879,33843.0,33791.0,0.22547608]
[1610345993502,0.02,33844.0,33791.0,0.22547608]
[1610345994705,0.13632608,33823.0,33807.0,0.13632608]
[1610345994905,0.02,33844.0,33807.0,0.13632608]
[1610345995106,4.7584,33876.0,33807.0,0.23108608]
[1610345996808,0.13632608,33848.0,33807.0,0.09476]
[1610345997008,4.7584,33876.0,33807.0,0.09476]
[1610345997807,3.11977813,33895.0,33809.0,1.0]
[1610345998409,3.12010601,33900.0,33809.0,1.0]
[1610345998806,0.13632608,33887.0,33809.0,1.0]
[1610345999808,0.13632608,33887.0,33807.0,0.09476]
[1610346000210,0.13632608,33887.0,33805.0,4.2884]
[1610346000813,0.13632608,33864.0,33850.0,0.13632608]
[1610346001114,0.2901,33899.0,33850.0,0.13632608]
[1610346001311,0.2901,33899.0,33850.0,0.0995]
[1610346002715,0.13632608,33886.0,33876.0,0.13632608]
[1610346002915,0.13632608,33886.0,33850.0,0.0995]